bitfinex/quotes_SOLUSD_20241016
["timestamp","ask_amount","ask_price","bid_price","bid_amount"]
[1729099251269,4.81272963,155.14,155.12,11.50314961]
[1729099251441,6.4456,155.15,155.12,11.50314961]
[1729099251637,6.72881831,155.18,155.12,11.50314961]
[1729099251638,4.81201915,155.14,155.12,11.50314961]
[1729099251847,6.4446,155.17,155.13,11.50314961]
[1729099252167,4.81154625,155.16,155.13,11.50314961]
[1729099252333,6.4446,155.17,155.13,11.50314961]
[1729099252537,4.81011874,155.16,155.13,11.50314961]
[1729099252869,6.4441,155.18,155.13,11.50314961]
[1729099254447,6.4437,155.19,155.13,11.50314961]
[1729099254786,6.726823,155.2,155.17,11.50314961]
[1729099254787,6.4433,155.2,155.17,11.50314961]
[1729099257963,6.4433,155.2,155.15,11.50314961]
[1729099259069,6.4433,155.2,155.17,11.50314961]
[1729099260660,6.4433,155.2,155.15,11.50314961]
[1729099263573,20.0,155.24,155.19,11.50314961]
[1729099263861,6.4415,155.25,155.21,11.50314961]
[1729099264063,6.72456577,155.27,155.21,11.50314961]
[1729099264265,13.16526577,155.27,155.21,11.50314961]
[1729099264467,37.9447,155.31,155.25,11.50314961]
[1729099264670,6.44,155.28,155.25,11.50314961]
[1729099264876,6.4396,155.29,155.25,11.50314961]
[1729099268070,6.4396,155.29,155.21,6.5864]
[1729099268274,6.4396,155.29,155.22,41.70602447]
[1729099269576,28.57042271,155.31,155.2,15.1669]
[1729099269577,20.0,155.28,155.2,15.1669]
[1729099269780,6.4423,155.23,155.17,24.24204047]
[1729099270560,16.1026,155.26,155.17,24.24204047]
[1729099270782,6.4425,155.22,155.17,24.24204047]
[1729099270951,6.4425,155.22,155.17,17.92914047]
[1729099271159,6.443,155.21,155.16,16.3677]
[1729099271874,6.4435,155.2,155.16,16.3677]
[1729099275390,6.4435,155.2,155.14,43.776884]
[1729099275688,6.4435,155.2,155.14,23.776884]
[1729099276067,6.4439,155.19,155.14,23.776884]
[1729099276464,45.686884,155.24,155.16,23.776884]
[1729099276465,29.582084,155.24,155.16,23.776884]
[1729099276669,6.4419,155.24,155.18,23.776884]
[1729099276885,21.5436,155.28,155.18,23.776884]
[1729099277082,6.4415,155.25,155.19,34.31564047]
[1729099278683,6.4409,155.26,155.2,23.776884]
[1729099279769,6.4418,155.24,155.19,16.3865]
[1729099281796,6.4412,155.26,155.19,34.31564047]
[1729099282095,6.4412,155.25,155.19,34.31564047]
[1729099284589,6.4408,155.26,155.2,23.776884]
[1729099285701,6.7242242,155.3,155.2,23.776884]
[1729099285996,6.4405,155.27,155.21,17.92914047]
[1729099286195,6.7242242,155.3,155.21,17.92914047]
[1729099286392,6.4401,155.28,155.22,23.776884]
[1729099286568,16.0761,155.31,155.22,23.776884]
[1729099286774,6.4396,155.29,155.22,23.776884]
[1729099287477,6.4396,155.29,155.23,17.92914047]
[1729099289998,6.4392,155.3,155.23,17.92914047]
[1729099290176,6.439,155.31,155.24,23.776884]
[1729099290501,6.439,155.31,155.25,17.92914047]
[1729099292679,6.72733895,155.33,155.23,17.92914047]
[1729099292883,6.4402,155.28,155.21,17.92914047]
[1729099294582,6.4402,155.28,155.22,23.776884]
[1729099295005,6.4395,155.29,155.22,23.776884]
[1729099297106,6.4391,155.3,155.22,23.776884]
[1729099297311,6.4391,155.3,155.23,17.92914047]
[1729099297476,6.4391,155.3,155.24,23.776884]
[1729099297682,6.439,155.31,155.24,23.776884]
[1729099298181,6.4393,155.3,155.24,23.776884]
[1729099299193,6.4408,155.26,155.2,20.0]
[1729099299398,6.4406,155.27,155.2,20.0]
[1729099300103,6.4406,155.27,155.19,40.82694047]
[1729099300603,6.4417,155.24,155.19,16.3865]
[1729099300985,6.4415,155.25,155.19,16.3865]
[1729099301383,6.4418,155.24,155.17,17.92914047]
[1729099301999,16.2,155.28,155.16,16.6338]
[1729099302000,6.4425,155.22,155.16,16.6338]
[1729099302505,6.4431,155.21,155.16,16.6338]
[1729099303419,43.876884,155.28,155.17,17.92914047]
[1729099303584,20.0,155.26,155.17,17.92914047]
[1729099303785,6.4419,155.24,155.17,17.92914047]
[1729099304295,6.4415,155.25,155.18,23.776884]
[1729099304594,20.0,155.28,155.19,17.92914047]
[1729099304796,20.0,155.26,155.19,17.92914047]
[1729099305202,26.441,155.26,155.19,17.92914047]
[1729099305603,6.4412,155.25,155.19,17.92914047]
[1729099307000,20.0,155.28,155.19,17.92914047]
[1729099307339,6.4409,155.26,155.2,23.776884]
[1729099307612,4.80349233,155.25,155.2,23.776884]
[1729099309628,6.4425,155.22,155.17,24.49634047]
[1729099309792,6.4425,155.22,155.16,16.6338]
[1729099310306,16.1014,155.27,155.16,16.6338]
[1729099310607,6.4422,155.23,155.16,16.6338]
[1729099310912,4.80692404,155.22,155.17,23.776884]
[1729099311109,6.4422,155.23,155.17,23.776884]
[1729099311704,6.4422,155.23,155.17,41.70602447]
[1729099319218,6.72557885,155.26,155.19,41.70602447]
[1729099319419,6.72557885,155.26,155.22,23.776884]
[1729099322904,6.72557885,155.26,155.24,23.776884]
[1729099323712,6.4388,155.31,155.24,23.776884]
[1729099323915,4.8071397,155.3,155.24,23.776884]
[1729099324119,4.8071397,155.29,155.24,23.776884]
[1729099324305,6.4388,155.31,155.24,23.776884]
[1729099324623,4.8064427,155.3,155.24,23.776884]
[1729099324827,6.4388,155.31,155.24,23.776884]
[1729099325028,4.80637375,155.3,155.24,23.776884]
[1729099325318,6.4388,155.31,155.25,17.92914047]
[1729099325616,4.80569615,155.3,155.26,23.776884]
[1729099325809,6.4388,155.31,155.26,23.776884]
[1729099326009,4.80567433,155.3,155.26,23.776884]
[1729099326229,6.4388,155.31,155.26,23.776884]
[1729099326412,4.80514915,155.3,155.26,23.776884]
[1729099326719,13.16167842,155.34,155.26,23.776884]
[1729099326905,12.49244464,155.33,155.27,17.92914047]
[1729099327101,4.8047864,155.32,155.28,23.776884]
[1729099327314,13.16167842,155.34,155.3,23.776884]
[1729099327315,6.72387842,155.34,155.3,23.776884]
[1729099327518,4.80343156,155.33,155.3,23.776884]
[1729099327821,6.72387842,155.34,155.3,23.776884]
[1729099328028,6.4369,155.36,155.3,23.776884]
[1729099328207,6.4363,155.37,155.31,17.92914047]
[1729099328613,4.80039824,155.36,155.31,17.92914047]
[1729099328930,6.4366,155.36,155.31,17.92914047]
[1729099329103,6.4366,155.36,155.29,41.70602447]
[1729099329305,6.4363,155.37,155.29,41.70602447]
[1729099332714,6.4363,155.37,155.32,23.776884]
[1729099334618,6.4359,155.38,155.32,23.776884]
[1729099335515,6.4354,155.39,155.34,23.776884]
[1729099335717,6.72401899,155.4,155.34,23.776884]
[1729099335909,6.72401899,155.4,155.36,23.776884]
[1729099336110,6.4338,155.43,155.37,17.92914047]
[1729099336316,16.0826,155.45,155.37,17.92914047]
[1729099336317,6.4343,155.42,155.37,17.92914047]
[1729099338045,6.4343,155.42,155.38,23.776884]
[1729099338825,22.2593,155.43,155.32,23.776884]
[1729099339016,22.2593,155.43,155.3,22.0488]
[1729099339017,22.2593,155.43,155.34,23.776884]
[1729099339218,6.4351,155.4,155.34,23.776884]
[1729099339636,20.0,155.42,155.33,17.92914047]
[1729099339823,6.4361,155.38,155.33,17.92914047]
[1729099340028,6.4361,155.38,155.31,17.92914047]
[1729099340920,6.4342,155.42,155.35,17.92914047]
[1729099341415,6.4342,155.42,155.36,23.776884]
[1729099341612,6.4342,155.42,155.38,23.776884]
[1729099343143,6.4338,155.43,155.38,23.776884]
[1729099345126,6.71991047,155.44,155.35,17.92914047]
[1729099345447,6.4349,155.41,155.36,23.776884]
[1729099345743,6.71991047,155.44,155.36,23.776884]
[1729099346145,6.4347,155.41,155.36,23.776884]
[1729099347354,6.4341,155.42,155.36,23.776884]
[1729099348042,6.4338,155.43,155.36,23.776884]
[1729099349656,6.4342,155.42,155.36,23.776884]
[1729099349859,6.4348,155.41,155.36,23.776884]
[1729099351736,6.4338,155.43,155.36,23.776884]
[1729099351945,6.4338,155.43,155.36,39.675884]
[1729099353235,6.71991047,155.44,155.36,39.675884]
[1729099353434,6.4346,155.41,155.36,23.776884]
[1729099354155,20.0,155.43,155.32,15.9105]
[1729099355443,6.4357,155.39,155.33,23.776884]
[1729099357368,20.0,155.43,155.33,23.776884]
[1729099357549,6.4361,155.38,155.33,23.776884]
[1729099358062,6.4345,155.42,155.36,23.776884]
[1729099358542,20.0,155.43,155.36,23.776884]
[1729099358735,6.71991047,155.44,155.36,23.776884]
[1729099359980,6.4337,155.43,155.36,23.776884]
[1729099362558,22.0243,155.46,155.38,23.776884]
[1729099362559,28.4568,155.46,155.38,23.776884]
[1729099362745,6.4325,155.46,155.39,33.86664047]
[1729099362947,6.4325,155.46,155.4,23.776884]
[1729099367951,6.4341,155.43,155.35,24.34184047]
[1729099368141,6.4341,155.43,155.36,20.0]
[1729099368342,6.4334,155.44,155.36,20.0]
[1729099369246,6.4334,155.44,155.37,23.776884]
[1729099369465,6.4334,155.44,155.36,23.776884]
[1729099369836,16.0799,155.48,155.36,23.776884]
[1729099370043,6.4338,155.43,155.36,23.776884]
[1729099372138,7.68862417,155.42,155.36,23.776884]
[1729099372346,6.4334,155.44,155.36,23.776884]
[1729099372562,7.68858351,155.43,155.37,17.92914047]
[1729099372864,7.68858351,155.42,155.38,23.776884]
[1729099373065,6.433,155.45,155.38,23.776884]
[1729099373265,7.69235536,155.44,155.38,23.776884]
[1729099373444,7.69235536,155.43,155.38,23.776884]
[1729099373641,6.433,155.45,155.38,23.776884]
[1729099374046,7.69221393,155.44,155.38,23.776884]
[1729099374342,7.69221393,155.43,155.38,23.776884]
[1729099374555,6.433,155.45,155.38,23.776884]
[1729099374755,7.69386267,155.44,155.38,23.776884]
[1729099374969,7.69386267,155.43,155.38,23.776884]
[1729099375165,7.69495875,155.42,155.38,23.776884]
[1729099375360,6.433,155.45,155.38,23.776884]
[1729099375666,7.69495726,155.44,155.38,23.776884]
[1729099375858,7.69495726,155.43,155.38,23.776884]
[1729099376055,7.69495726,155.42,155.38,23.776884]
[1729099376254,6.433,155.45,155.38,23.776884]
[1729099376454,7.69641155,155.44,155.38,23.776884]
[1729099376663,7.69641155,155.43,155.38,23.776884]
[1729099376978,7.69641155,155.42,155.38,23.776884]
[1729099377268,6.433,155.45,155.38,23.776884]
[1729099377459,7.69804351,155.44,155.38,23.776884]
[1729099377659,7.69804351,155.43,155.38,23.776884]
[1729099377966,7.69804351,155.42,155.4,23.776884]
[1729099378167,6.433,155.45,155.41,11.4521499]
[1729099378358,7.69970037,155.44,155.42,23.776884]
[1729099378553,7.69970037,155.43,155.42,23.776884]
[1729099378751,7.69970037,155.45,155.42,23.776884]
[1729099378954,7.69970037,155.44,155.42,23.776884]
[1729099379155,6.4325,155.46,155.42,23.776884]
[1729099379156,7.69970037,155.43,155.42,23.776884]
[1729099384978,7.69970037,155.43,155.37,23.776884]
[1729099385174,6.4332,155.45,155.4,23.776884]
[1729099385175,7.69970037,155.42,155.4,23.776884]
[1729099385475,6.4332,155.45,155.4,23.776884]
[1729099385772,7.70513662,155.44,155.4,23.776884]
[1729099385953,7.70513662,155.43,155.4,23.776884]
[1729099386148,7.70513662,155.42,155.4,23.776884]
[1729099386346,6.4332,155.45,155.4,23.776884]
[1729099386562,7.70600481,155.44,155.4,23.776884]
[1729099386763,7.70600481,155.43,155.4,23.776884]
[1729099386971,7.70600481,155.42,155.4,23.776884]
[1729099387173,6.4332,155.45,155.4,23.776884]
[1729099387357,7.70616352,155.44,155.4,23.776884]
[1729099387555,7.70616352,155.43,155.4,23.776884]
[1729099387751,7.70616352,155.42,155.4,23.776884]
[1729099388074,6.4328,155.46,155.4,23.776884]
[1729099388377,7.70623493,155.45,155.4,23.776884]
[1729099388577,7.70623493,155.44,155.4,23.776884]
[1729099389374,7.70623493,155.43,155.4,23.776884]
[1729099389685,7.70623493,155.42,155.4,23.776884]
[1729099389859,6.4328,155.46,155.4,23.776884]
[1729099390054,7.7062335,155.45,155.4,23.776884]
[1729099390250,7.7062335,155.44,155.4,23.776884]
[1729099390465,7.7062335,155.43,155.4,23.776884]
[1729099390668,7.7062335,155.42,155.4,23.776884]
[1729099390873,7.7062335,155.41,155.37,11.4521499]
[1729099392878,6.4338,155.43,155.37,11.4521499]
[1729099393072,7.70748336,155.42,155.37,11.4521499]
[1729099393281,7.70748336,155.41,155.37,11.4521499]
[1729099393580,6.4338,155.43,155.37,11.4521499]
[1729099393783,6.72074822,155.47,155.39,15.7864]
[1729099393962,7.70773373,155.46,155.43,11.4521499]
[1729099394273,7.70773373,155.45,155.43,11.4521499]
[1729099394575,7.70773373,155.44,155.43,35.2290339]
[1729099398389,7.70773373,155.44,155.43,23.776884]
[1729099398561,7.70773373,155.44,155.42,23.776884]
[1729099398867,13.15284822,155.47,155.42,23.776884]
[1729099399180,7.70708545,155.46,155.42,23.776884]
[1729099399381,7.70708545,155.45,155.42,23.776884]
[1729099399763,7.70708545,155.44,155.42,23.776884]
[1729099399970,13.15284822,155.47,155.42,23.776884]
[1729099400173,7.70686249,155.46,155.42,23.776884]
[1729099400363,7.70686249,155.45,155.42,23.776884]
[1729099400582,7.70686249,155.44,155.42,23.776884]
[1729099400876,13.15284822,155.47,155.42,23.776884]
[1729099401090,7.70711382,155.46,155.42,23.776884]
[1729099401267,7.70711382,155.45,155.42,23.776884]
[1729099401588,7.70711382,155.44,155.42,23.776884]
[1729099401797,7.70711382,155.43,155.4,23.776884]
[1729099402263,6.4329,155.45,155.4,23.776884]
[1729099402465,7.71109794,155.44,155.4,23.776884]
[1729099402655,7.71109794,155.43,155.4,23.776884]
[1729099402861,6.4329,155.45,155.4,23.776884]
[1729099403078,7.71110682,155.44,155.4,23.776884]
[1729099403293,6.4329,155.45,155.4,23.776884]
[1729099403587,7.71397284,155.44,155.4,23.776884]
[1729099403787,7.71397284,155.43,155.4,23.776884]
[1729099403968,7.71397284,155.42,155.4,23.776884]
[1729099404158,6.4329,155.45,155.4,23.776884]
[1729099404385,7.7155271,155.44,155.4,23.776884]
[1729099404571,7.7155271,155.43,155.4,23.776884]
[1729099404907,7.7155271,155.42,155.4,23.776884]
[1729099405180,6.4334,155.44,155.4,23.776884]
[1729099405380,7.71633896,155.43,155.4,23.776884]
[1729099405572,7.71633896,155.42,155.4,23.776884]
[1729099405768,6.4334,155.44,155.4,23.776884]
[1729099405967,7.71642272,155.43,155.4,23.776884]
[1729099406180,7.71642272,155.42,155.4,23.776884]
[1729099406366,6.4334,155.44,155.4,23.776884]
[1729099406574,7.7170658,155.43,155.4,23.776884]
[1729099406769,7.7170658,155.42,155.4,23.776884]
[1729099407089,6.4334,155.44,155.4,23.776884]
[1729099407381,7.7177213,155.43,155.4,23.776884]
[1729099407683,7.7177213,155.42,155.35,15.0355]
[1729099407863,6.435,155.4,155.35,26.4876499]
[1729099408400,7.71833812,155.39,155.35,26.4876499]
[1729099408581,6.435,155.4,155.35,26.4876499]
[1729099408769,7.71844093,155.39,155.35,11.4521499]
[1729099409183,6.4346,155.41,155.35,11.4521499]
[1729099409377,7.71660946,155.4,155.36,23.776884]
[1729099409574,7.71660946,155.39,155.36,23.776884]
[1729099409776,6.4346,155.41,155.36,23.776884]
[1729099409975,7.71631956,155.4,155.36,23.776884]
[1729099410287,6.4346,155.41,155.36,23.776884]
[1729099410484,7.71527902,155.4,155.36,23.776884]
[1729099410788,6.4346,155.41,155.36,23.776884]
[1729099410983,7.71527132,155.4,155.36,23.776884]
[1729099411174,6.4346,155.41,155.36,23.776884]
[1729099411371,7.71438143,155.4,155.36,23.776884]
[1729099411683,6.4346,155.41,155.36,23.776884]
[1729099411884,7.71438839,155.4,155.36,23.776884]
[1729099412070,6.4346,155.41,155.36,23.776884]
[1729099412407,7.71359159,155.4,155.36,23.776884]
[1729099412569,6.4346,155.41,155.36,23.776884]
[1729099412771,7.71359926,155.4,155.36,23.776884]
[1729099413072,6.4346,155.41,155.36,23.776884]
[1729099413287,7.71293013,155.4,155.36,23.776884]
[1729099413475,6.4346,155.41,155.36,23.776884]
[1729099413783,7.71288825,155.4,155.36,23.776884]
[1729099413993,6.4346,155.41,155.36,23.776884]
[1729099414289,7.71289445,155.4,155.36,23.776884]
[1729099414504,6.4346,155.41,155.36,23.776884]
[1729099414670,7.71236734,155.4,155.36,23.776884]
[1729099414871,6.4346,155.41,155.36,23.776884]
[1729099415089,7.71236114,155.4,155.36,23.776884]
[1729099415276,6.4346,155.41,155.36,23.776884]
[1729099415474,7.71172772,155.4,155.36,23.776884]
[1729099415792,6.4346,155.41,155.36,23.776884]
[1729099415990,7.71173467,155.4,155.36,23.776884]
[1729099416171,6.4346,155.41,155.36,23.776884]
[1729099417767,7.71090222,155.4,155.36,23.776884]
[1729099417965,6.4344,155.42,155.37,11.4521499]
[1729099418164,7.71090073,155.41,155.37,11.4521499]
[1729099418379,6.4338,155.43,155.38,23.776884]
[1729099418692,7.71041856,155.42,155.4,23.776884]
[1729099419074,7.71041856,155.41,155.4,23.776884]
[1729099419596,6.4325,155.46,155.4,23.776884]
[1729099419909,7.70918952,155.45,155.4,23.776884]
[1729099420091,7.70918952,155.44,155.4,23.776884]
[1729099420397,7.70918952,155.43,155.41,11.4521499]
[1729099420573,6.4329,155.45,155.41,11.4521499]
[1729099420895,7.70899529,155.44,155.41,11.4521499]
[1729099421100,7.70899529,155.43,155.41,11.4521499]
[1729099421307,6.4329,155.45,155.41,11.4521499]
[1729099421593,7.70890984,155.44,155.41,11.4521499]
[1729099421914,7.70890984,155.43,155.41,11.4521499]
[1729099422203,6.4329,155.45,155.41,11.4521499]
[1729099422374,7.70885753,155.44,155.41,11.4521499]
[1729099422574,7.70885753,155.43,155.41,11.4521499]
[1729099422790,6.4329,155.45,155.41,11.4521499]
[1729099422987,7.70885208,155.44,155.41,11.4521499]
[1729099423197,6.4329,155.45,155.41,11.4521499]
[1729099423198,7.70885208,155.43,155.41,11.4521499]
[1729099423377,6.4329,155.45,155.41,11.4521499]
[1729099423586,7.70888969,155.44,155.41,11.4521499]
[1729099423884,7.70888969,155.43,155.41,11.4521499]
[1729099424091,6.4329,155.45,155.41,11.4521499]
[1729099424290,7.70889875,155.44,155.41,11.4521499]
[1729099424488,7.70889875,155.43,155.41,11.4521499]
[1729099424694,6.4329,155.45,155.41,11.4521499]
[1729099424899,7.70889725,155.44,155.41,11.4521499]
[1729099425191,6.4329,155.45,155.41,11.4521499]
[1729099425192,7.70889725,155.43,155.41,11.4521499]
[1729099425376,4.81804644,155.42,155.41,11.4521499]
[1729099425577,4.81804644,155.44,155.41,35.2290339]
[1729099425887,12.52692075,155.43,155.41,35.2290339]
[1729099426084,4.81804644,155.42,155.41,35.2290339]
[1729099427180,6.4329,155.45,155.41,35.2290339]
[1729099427391,12.52725712,155.44,155.41,35.2290339]
[1729099427577,12.52725712,155.43,155.41,35.2290339]
[1729099427878,4.818121,155.42,155.41,35.2290339]
[1729099428199,4.818121,155.44,155.41,35.2290339]
[1729099428397,12.52714189,155.43,155.41,35.2290339]
[1729099428588,4.818121,155.42,155.41,35.2290339]
[1729099428798,4.818121,155.44,155.41,35.2290339]
[1729099428988,12.52714189,155.43,155.41,35.2290339]
[1729099429181,4.818121,155.42,155.41,35.2290339]
[1729099429384,4.818121,155.44,155.41,35.2290339]
[1729099429714,12.52716777,155.43,155.41,35.2290339]
[1729099430000,4.818121,155.42,155.41,35.2290339]
[1729099430582,4.818121,155.44,155.41,35.2290339]
[1729099430797,12.52717669,155.43,155.42,23.776884]
[1729099430997,12.52717669,155.43,155.42,35.2290339]
[1729099435710,12.52717669,155.43,155.37,21.6394]
[1729099435879,4.818121,155.42,155.37,26.6808499]
[1729099436075,4.818121,155.41,155.37,26.6808499]
[1729099436281,6.4339,155.43,155.37,26.6808499]
[1729099436481,4.81824145,155.42,155.37,26.6808499]
[1729099436697,4.81824145,155.41,155.37,26.6808499]
[1729099436902,6.4339,155.43,155.37,26.6808499]
[1729099437107,6.4339,155.43,155.38,23.776884]
[1729099437416,4.81824736,155.42,155.38,23.776884]
[1729099437604,4.81824736,155.41,155.38,23.776884]
[1729099437811,6.71901486,155.47,155.38,23.776884]
[1729099438008,6.4333,155.44,155.4,23.776884]
[1729099438183,12.52730554,155.43,155.4,23.776884]
[1729099438384,4.81819444,155.42,155.4,23.776884]
[1729099438691,4.81819444,155.41,155.4,23.776884]
[1729099440587,4.81833621,155.41,155.4,23.776884]
[1729099440782,12.52767414,155.43,155.4,23.776884]
[1729099441098,6.4325,155.46,155.43,23.776884]
[1729099441287,12.5271186,155.45,155.43,23.776884]
[1729099441491,12.5271186,155.44,155.43,23.776884]
[1729099442095,4.81812254,155.44,155.43,23.776884]
[1729099442297,4.81812254,155.44,155.4,11.4521499]
[1729099442588,12.5271186,155.43,155.39,23.776884]
[1729099442896,4.81812254,155.42,155.39,23.776884]
[1729099443093,4.81812254,155.41,155.39,23.776884]
[1729099443293,6.433,155.45,155.39,23.776884]
[1729099443487,12.52780302,155.44,155.41,23.776884]
[1729099443692,12.52780302,155.43,155.41,23.776884]
[1729099443901,4.81838578,155.42,155.41,23.776884]
[1729099447423,4.81882432,155.42,155.41,23.776884]
[1729099451007,6.4348,155.41,155.33,6.5089]
[1729099451209,6.4354,155.39,155.34,11.4521499]
[1729099451417,6.436,155.38,155.32,16.6356]
[1729099451622,16.0854,155.42,155.32,28.0877499]
[1729099451914,6.4351,155.4,155.34,11.4521499]
[1729099452109,12.53105812,155.39,155.34,11.4521499]
[1729099452615,4.81963774,155.38,155.35,11.4521499]
[1729099452816,6.4354,155.39,155.35,11.4521499]
[1729099453001,4.81913107,155.38,155.35,11.4521499]
[1729099453200,6.4354,155.39,155.35,11.4521499]
[1729099453416,4.8185803,155.38,155.35,11.4521499]
[1729099453611,6.4354,155.39,155.35,11.4521499]
[1729099453916,4.81860646,155.38,155.35,11.4521499]
[1729099454212,6.4354,155.39,155.35,11.4521499]
[1729099454423,4.81818374,155.38,155.35,11.4521499]
[1729099454720,6.4348,155.41,155.36,23.776884]
[1729099454929,6.4358,155.38,155.32,16.6356]
[1729099455103,6.4363,155.37,155.33,35.2290339]
[1729099455595,6.4369,155.36,155.27,16.68037158]
[1729099455918,16.0868,155.41,155.27,16.68037158]
[1729099455919,6.4376,155.34,155.29,11.4521499]
[1729099456126,36.089,155.39,155.29,11.4521499]
[1729099456306,12.52183699,155.38,155.31,11.4521499]
[1729099456504,18.95843699,155.37,155.31,11.4521499]
[1729099456707,12.52186257,155.36,155.31,11.4521499]
[1729099457031,26.4355,155.39,155.33,11.4521499]
[1729099457323,12.51743472,155.38,155.33,11.4521499]
[1729099457627,26.4355,155.39,155.28,20.0]
[1729099457628,11.25099797,155.37,155.32,23.776884]
[1729099457805,4.81439797,155.36,155.32,23.776884]
[1729099458124,6.4366,155.37,155.32,23.776884]
[1729099459899,20.0,155.39,155.32,23.776884]
[1729099460216,11.24791571,155.38,155.32,23.776884]
[1729099460514,4.81201571,155.37,155.32,23.776884]
[1729099460707,6.4359,155.38,155.32,23.776884]
[1729099460913,4.8109869,155.37,155.32,23.776884]
[1729099461114,6.4359,155.38,155.32,23.776884]
[1729099461328,4.81004518,155.37,155.32,23.776884]
[1729099461524,6.4359,155.38,155.32,23.776884]
[1729099461725,4.8100493,155.37,155.32,23.776884]
[1729099461925,6.4359,155.38,155.32,23.776884]
[1729099462221,4.81004884,155.37,155.32,23.776884]
[1729099462430,6.4359,155.38,155.32,23.776884]
[1729099466523,22.0199,155.4,155.32,23.776884]
[1729099466524,22.0199,155.4,155.34,23.776884]
[1729099466720,4.80659638,155.39,155.34,23.776884]
[1729099466921,15.7855,155.4,155.34,23.776884]
[1729099467121,4.806461,155.39,155.34,23.776884]
[1729099467331,6.4354,155.39,155.34,23.776884]
[1729099467716,6.72040039,155.42,155.37,11.4521499]
[1729099467922,6.72040039,155.42,155.39,11.4521499]
[1729099468437,6.4334,155.44,155.39,11.4521499]
[1729099468637,4.80501605,155.43,155.39,11.4521499]
[1729099468829,6.4334,155.44,155.39,11.4521499]
[1729099469024,4.80495952,155.43,155.38,23.776884]
[1729099469219,6.4334,155.44,155.38,23.776884]
[1729099469418,4.80520966,155.43,155.38,23.776884]
[1729099469618,6.4334,155.44,155.38,23.776884]
[1729099470437,4.80520764,155.43,155.38,23.776884]
[1729099470651,6.4334,155.44,155.38,23.776884]
[1729099470827,4.80512425,155.43,155.38,23.776884]
[1729099471024,6.4334,155.44,155.38,23.776884]
[1729099471345,4.80510858,155.43,155.38,23.776884]
[1729099471544,6.4334,155.44,155.38,23.776884]
[1729099471722,4.80533862,155.43,155.38,23.776884]
[1729099471926,6.4334,155.44,155.38,23.776884]
[1729099472247,4.80533862,155.43,155.38,23.776884]
[1729099472549,6.4334,155.44,155.38,23.776884]
[1729099472728,11.23925066,155.43,155.38,23.776884]
[1729099472929,6.4338,155.43,155.38,23.776884]
[1729099473847,4.8057318,155.42,155.38,23.776884]
[1729099474033,6.4342,155.42,155.37,11.4521499]
[1729099474236,20.0,155.43,155.32,6.544]
[1729099474441,20.0,155.4,155.31,27.0728499]
[1729099474643,20.0,155.4,155.31,11.4521499]
[1729099474644,6.4368,155.36,155.31,11.4521499]
[1729099477726,6.4373,155.35,155.31,11.4521499]
[1729099477943,36.2878,155.4,155.28,35.2290339]
[1729099478243,36.4378,155.34,155.28,11.4521499]
[1729099478626,30.0,155.34,155.32,11.4521499]
[1729099478830,20.0,155.37,155.32,11.4521499]
[1729099479733,6.4365,155.37,155.32,11.4521499]
[1729099480427,6.4359,155.38,155.33,23.776884]
[1729099482047,13.15670163,155.4,155.34,11.4521499]
[1729099482251,6.4352,155.4,155.34,11.4521499]
[1729099485452,20.0,155.41,155.36,11.4521499]
[1729099485663,4.80504461,155.4,155.36,11.4521499]
[1729099485845,20.0,155.41,155.36,11.4521499]
[1729099486146,4.80504304,155.4,155.37,23.776884]
[1729099486333,6.4343,155.42,155.37,23.776884]
[1729099486649,4.80526569,155.41,155.37,23.776884]
[1729099486855,6.4346,155.41,155.37,23.776884]
[1729099487243,4.80553859,155.4,155.37,23.776884]
[1729099487437,26.4343,155.42,155.37,23.776884]
[1729099488939,4.80599355,155.41,155.37,23.776884]
[1729099490042,6.4343,155.42,155.37,23.776884]
[1729099490636,4.80636899,155.41,155.37,23.776884]
[1729099490957,26.4346,155.41,155.37,23.776884]
[1729099491547,20.0,155.41,155.37,23.776884]
[1729099495158,6.4343,155.42,155.37,23.776884]
[1729099495159,6.435,155.4,155.37,23.776884]
[1729099495434,6.4347,155.41,155.37,23.776884]
[1729099500360,13.15277184,155.43,155.37,23.776884]